Cogmind - Beta 11.1 @@@ ROGUE MODE // 2022.11.25 @ 00:27:54 Player: Horse Result: Self-destructed Performance ------------- Evolutions (5) 2500 Regions Visited (12) 2400 Robots Destroyed (161) 805 Value Destroyed (5660) 5660 Prototype IDs (14) 280 Alien Tech Used (0) 0 Bonus (2324) 2324 TOTAL SCORE: 13969 Bonus ------- High Alert Combat Kills 551 Follower Combat Kills 1648 Entered DSFs 500 Network Hubs Disabled 200 Built Enhanced Grunts 300 Friendly Fire -875 Cogmind --------- Core Integrity 257/1000 Matter 275/300 Energy 140/150 System Corruption 3% Temperature Cool (0) Movement Hovering (190) Ox2 Location -5/Factory Parts ------- > --- POWER (1) -------- Light Angular Momentum Engine > --- PROPULSION (2) --- Carbon-fiber Leg Antigrav System > --- UTILITY (11) ----- Machine Analyzer Improved Melee Analysis Suite Reaction Control System Hacking Suite > --- WEAPON (3) ------- Thermic Laser Thermic Laser Improved Heavy Laser > --- INVENTORY (5) ---- Huge Storage Unit Powered Armor Drone Bay (2/2) Field Laser Heavy Plasma Cannon Peak State ------------ > --- POWER ------------ Neutrino Core > --- PROPULSION ------- Improved VSS Leg Enhanced Flexi-carbon Leg > --- UTILITY ---------- Advanced Heat Sink Medium Storage Unit Improved Trap Scanner Machine Analyzer Enhanced Optical Array Hardened Light Armor Plating Improved Light Armor Plating Improved Medium Armor Plating Thermal Shield Shock Absorption System System Shield > --- WEAPON ----------- Wave Gun Advanced KE Penetrator Advanced KE Penetrator > --- INVENTORY -------- Cold Fusion Reactor Armored Medium Treads Improved VSS Leg Improved VSS Leg Heavy Plasma Cannon Mini Assault Cannon Heavy Flak Cannon Phasing Sabre Phasing Sabre [Rating: 84] Favorites ----------- Power Light Nuclear Core Engine Light Angular Momentum Engine Power Core Light Nuclear Core Reactor Light Antimatter Reactor Propulsion Improved VSS Leg Treads Light Treads Leg Improved VSS Leg Wheel Wheel Hover Unit Antigrav System Utility Machine Analyzer Device Advanced Heat Sink Storage Large Storage Unit Processor Machine Analyzer Hackware System Shield Protection Improved Light Armor Plating Weapon Axe Energy Gun Wave Gun Energy Cannon Proton Cannon Ballistic Gun Advanced KE Penetrator Ballistic Cannon Flak Cannon Impact Weapon Powered Hammer Slashing Weapon Axe Build | -11 -10 -10 -9 -8 -7 -7 -6 -6 -6 -6 -6 -5 ------- Run | Scr Mat Min Mat Mat Fac DSF Fac Ext Cet Arc Hub Fac Slots Evolved 10 | . . . 2 2 2 . 2 . . . . 2 Power . | . . . . . . . . . . . . . Propulsion . | . . . . . . . . . . . . . Utility 9 | . . . 1 2 2 . 2 . . . . 2 Weapon 1 | . . . 1 . . . . . . . . . Parts Attached 204 | 7 6 7 25 65 1 20 15 20 4 3 1 30 Power 20 | 1 . . 3 4 . 2 2 2 1 1 . 4 Engine 11 | 1 . . 3 1 . . 1 2 1 . . 2 Core 7 | . . . . 3 . 2 . . . 1 . 1 Reactor 2 | . . . . . . . 1 . . . . 1 Propulsion 70 | 2 4 6 7 35 . 3 1 4 . . . 8 Treads 26 | . 3 2 4 16 . . . . . . . 1 Leg 10 | . . . . . . . . 4 . . . 6 Wheel 33 | 2 1 4 3 19 . 3 1 . . . . . Hover 1 | . . . . . . . . . . . . 1 Flight . | . . . . . . . . . . . . . Utility 63 | 1 1 1 6 20 1 9 6 7 1 1 1 8 Device 31 | . . 1 3 10 . 4 3 3 1 . . 6 Storage 3 | 1 1 . . . . 1 . . . . . . Processor 6 | . . . . 3 1 . . . . . 1 1 Hackware 2 | . . . . . . . 1 . . . . 1 Protection 21 | . . . 3 7 . 4 2 4 . 1 . . Artifact . | . . . . . . . . . . . . . Weapon 51 | 3 1 . 9 6 . 6 6 7 2 1 . 10 Energy Gun 10 | 2 . . 2 1 . . . . . 1 . 4 Energy Cannon 4 | . . . 1 . . . 1 1 . . . 1 Ballistic Gun 9 | 1 1 . . . . . 4 1 2 . . . Ballistic Cannon 11 | . . . 1 . . 2 1 5 . . . 2 Launcher . | . . . . . . . . . . . . . Special Weapon . | . . . . . . . . . . . . . Impact Weapon 3 | . . . . 1 . 2 . . . . . . Slashing Weapon 14 | . . . 5 4 . 2 . . . . . 3 Piercing Weapon . | . . . . . . . . . . . . . Special Melee Weapon . | . . . . . . . . . . . . . Unidentified Prototypes 10 | . . . 4 1 . . . . 1 . . 4 Parts Lost 72 | . 1 1 2 13 . 12 4 15 . . . 24 Power 13 | . . . 1 3 . 2 2 2 . . . 3 Propulsion 12 | . . . . 3 . 2 1 1 . . . 5 Utility 25 | . . . 1 5 . 3 1 6 . . . 9 Weapon 22 | . 1 1 . 2 . 5 . 6 . . . 7 Highest Loss Streak 13 | . 1 1 1 4 . 10 3 11 . . . 13 To Critical Strikes . | . . . . . . . . . . . . . Average Slot Usage (%) 87 | . 81 84 97 89 80 78 89 86 100 99 100 69 Engine 4 | . 14 14 10 1 . . . 3 6 1 . 1 Core 2 | . . . . 7 7 4 1 . . 3 6 2 Treads 2 | . 12 6 7 5 . . . . . . . . Leg 4 | . . . . . . . . 7 13 13 13 7 Wheel 6 | . 15 21 14 9 7 7 6 2 . . . . Device 9 | . . 10 8 6 7 9 14 9 13 13 13 9 Storage 7 | . 14 14 11 9 7 7 6 6 6 6 6 2 Processor 11 | . . . . 11 19 23 20 15 13 13 13 11 Hackware 2 | . . . . . . . 5 6 6 6 6 3 Protection 11 | . . . 13 13 7 5 7 10 20 20 20 7 Energy Gun 2 | . 20 2 . 1 . . . . . 4 6 8 Energy Cannon 1 | . . . . . . . . 3 6 1 . . Ballistic Gun 5 | . 3 14 . . . . 17 4 10 13 13 4 Ballistic Cannon 2 | . . . . . . 1 1 10 2 . . . Slashing Weapon 9 | . . . 30 22 15 12 . . . . . . Naked Turns . | . . . . . . . . . . . . . Heaviest Build 64 | 12 27 27 46 46 38 41 59 56 56 60 60 64 Greatest Support 54 | 20 40 40 40 54 37 37 28 40 30 30 30 43 Greatest Overweight (x) 4 | . 2 1 4 4 1 1 2 1 1 1 1 3 Average Overweight (x) 1 | . 1 . 1 . 1 . 1 . 1 1 1 . Largest Inventory Capacity 15 | 8 15 15 15 15 15 15 15 10 10 10 10 10 Average Capacity 12 | 6 14 15 15 15 15 15 10 10 10 10 10 7 Most Carried 15 | 6 8 9 15 15 15 15 12 10 10 10 10 10 Average Carried 10 | 3 6 7 13 14 15 13 8 8 9 10 10 6 Final Capacity 15 | 8 15 15 15 15 15 15 10 10 10 10 10 5 Final Carried 15 | 6 6 9 15 15 15 12 7 10 10 10 10 5 Class Distribution -------------------- 43% | Mutant 30% | Scavenger-Tank 13% | Scavenger-Mutant 3% | Scavenger-Skirmisher 3% | Commander-Tank Dominant Class ---------------- Mutant | -10/Materials Mutant | -10/Mines Mutant | -9/Materials Mutant | -8/Materials Mutant | -7/Factory Mutant | -7/DSF Scavenger-Tank | -6/Factory Scavenger-Tank | -6/Extension Scavenger-Mutant | -6/Cetus Scavenger-Tank | -6/Archives Scavenger-Tank | -6/Hub_04(d) Scavenger-Tank | -5/Factory Resources | -11 -10 -10 -9 -8 -7 -7 -6 -6 -6 -6 -6 -5 ----------- Run | Scr Mat Min Mat Mat Fac DSF Fac Ext Cet Arc Hub Fac Matter Collected 3978 | 193 . 149 347 605 . 261 692 867 227 54 67 516 Remotely . | . . . . . . . . . . . . . Salvage Created 7235 | . 67 161 1182 1449 . 347 797 940 652 51 424 1165 Parts 367 | . 3 10 74 73 . 18 42 50 23 . 21 53 Haulers Intercepted 7 | . . . 6 1 . . . . . . . . Recyclers Shooed 6 | . . . . . . . 1 3 . . . 2 Parts Field Recycled . | . . . . . . . . . . . . . Retrieved Matter . | . . . . . . . . . . . . . Parts Self-Destructed . | . . . . . . . . . . . . . Prevented . | . . . . . . . . . . . . . Kills | -11 -10 -10 -9 -8 -7 -7 -6 -6 -6 -6 -6 -5 ------- Run | Scr Mat Min Mat Mat Fac DSF Fac Ext Cet Arc Hub Fac Combat Hostiles Destroyed 125 | . 3 5 21 24 . 9 10 8 12 1 4 28 Melee 53 | . . . 21 24 . 5 . . . . . 3 Guns 45 | . 1 5 . . . . 9 5 8 . 4 13 Cannons 15 | . . . . . . 3 1 3 2 1 . 5 AOE 8 | . 2 . . . . . . . 1 . . 5 Classes Destroyed 18 | . 3 1 4 3 . 3 . 2 . . . 2 Worker 10 | . 1 . . 6 . . 1 . . . 1 1 Builder 2 | . . . . . . . . 1 . . 1 . Tunneler 1 | . . 1 . . . . . . . . . . Hauler 7 | . . . 6 1 . . . . . . . . Recycler 9 | . . . 3 1 . . 1 2 . . 1 1 Mechanic 1 | . . . . 1 . . . . . . . . Operator 3 | . . . . 1 . . . . . . 1 1 Watcher 5 | . . . 2 2 . . 1 . . . . . Swarmer 35 | . 1 3 10 3 . . 4 . 3 . . 11 Cutter 3 | . . . . . . 3 . . . . . . Grunt 43 | . 2 2 3 12 . 2 3 2 5 . 2 10 Duelist 2 | . . . . . . 1 . . 1 . . . Sentry 27 | . . . 8 6 . 1 3 6 . 1 2 . Specialist 3 | . . . . . . 2 . . . . . 1 Hunter 3 | . . . . 3 . . . . . . . . Programmer 2 | . . . . . . . . . . . . 2 Cetus Guard 3 | . . . . . . . . . 3 . . . Assembled 4 | . . . . . . . . . . . . 4 Savage 1 | . . . . . . . . 1 . . . . Butcher 1 | . . . . . . . . . 1 . . . Best Kill Streak 13 | . 3 4 6 13 . 2 5 3 6 1 2 11 Combat Bots Only 10 | . 2 4 6 8 . 2 4 2 6 1 2 10 Max Kills in Single Turn 4 | . 3 2 2 1 . 1 2 2 2 1 2 4 Gunslinging 1 | . . 1 . . . . . . . . . 1 Exploded 4 | . 2 . . . . . . . 1 . . 4 Melee 2 | . . . 2 1 . 1 . . . . . 1 Uniques/NPCs Destroyed . | . . . . . . . . . . . . . Combat | -11 -10 -10 -9 -8 -7 -7 -6 -6 -6 -6 -6 -5 -------- Run | Scr Mat Min Mat Mat Fac DSF Fac Ext Cet Arc Hub Fac Damage Taken 11228 | . 167 233 631 1491 . 2347 827 1719 597 47 210 2959 Core 1885 | . 10 37 87 147 . 552 71 160 78 . . 743 Absorbed by Shields 790 | . . . 212 196 . 33 93 233 23 . . . Redirected to Shielding 100 | . . . 49 29 . 22 . . . . . . Regen/Repaired (Parts) 103 | . . . . 103 . . . . . . . . Core Remaining (%) 69 | 100 . 81 78 73 . 21 . . . . 63 . Volleys Fired 211 | . 5 16 . . . 13 51 45 23 3 9 46 Largest 3 | . 2 2 . . . 2 3 3 3 3 3 3 Hottest 235 | . 80 60 . . . 92 118 172 172 145 151 235 Shots Fired 531 | . 10 23 . . . 19 131 124 56 9 25 134 Gun 360 | . 10 23 . . . . 111 51 28 6 25 106 Cannon 171 | . . . . . . 19 20 73 28 3 . 28 Launcher . | . . . . . . . . . . . . . Special . | . . . . . . . . . . . . . Kinetic 388 | . 2 16 . . . 19 123 116 38 6 18 50 Thermal 91 | . . . . . . . . . . . 7 84 Explosive . | . . . . . . . . . . . . . Electromagnetic 52 | . 8 7 . . . . 8 8 18 3 . . Robot Hit Streak 12 | . 1 5 . . . 2 11 12 12 5 4 8 Robot Miss Streak 12 | . 3 3 . . . 4 9 7 4 2 2 12 Penetration Max 3 | . . . . . . . 3 1 1 . 1 1 Secondary Targets 9 | . . 1 . . . . 2 . . . . 6 Max Gunslinging Chain 1 | . . 1 . . . . 1 . . . . 1 Shots Hit Robots 480 | . 3 16 63 95 . 42 55 65 33 5 11 92 Core Hits 272 | . 5 8 30 31 . 12 36 48 39 2 14 47 Critical Kills 21 | . . . . . . . 8 7 3 . 1 2 Critical Parts Destroyed 35 | . . . . . . 2 18 5 3 . 1 6 Critical Strikes 90 | . . . 7 6 . 7 29 17 7 . 2 15 Burn 5 | . . . . . . . . . . . . 5 Destroy 56 | . . . . . . . 28 12 6 . 2 8 Blast 7 | . . . . . . 1 1 5 . . . . Corrupt 1 | . . . . . . . . . 1 . . . Smash 2 | . . . . . . 2 . . . . . . Sever 19 | . . . 7 6 . 4 . . . . . 2 Melee Attacks 273 | . . . 95 124 1 39 . . . . . 14 Impact 8 | . . . . . . 8 . . . . . . Slashing 265 | . . . 95 124 1 31 . . . . . 14 Piercing . | . . . . . . . . . . . . . Sneak Attacks 24 | . . . 12 12 . . . . . . . . Combat Hostiles 1 | . . . . 1 . . . . . . . . Follow-up Attacks 56 | . . . 23 22 . 11 . . . . . . Damage Inflicted 16706 | . 372 199 2648 3834 . 1432 764 1493 1363 130 736 3735 Guns 3783 | . 39 199 . . . . 601 212 525 74 390 1743 Cannons 3031 | . . . . . . 236 163 1281 666 56 . 629 Explosions 1683 | . 333 . . . . . . . 172 . 346 832 Melee 8204 | . . . 2648 3834 . 1191 . . . . . 531 Ramming 5 | . . . . . . 5 . . . . . . Kinetic 4864 | . . 154 . . . 236 764 1382 838 74 365 1051 Thermal 2683 | . 333 . . . . . . . 172 . 25 2153 Explosive . | . . . . . . . . . . . . . Electromagnetic 950 | . 39 45 . . . . . 111 353 56 346 . Impact 273 | . . . . . . 273 . . . . . . Slashing 7931 | . . . 2648 3834 . 918 . . . . . 531 Piercing . | . . . . . . . . . . . . . Highest Corruption 3 | . . . . . . . . . . . . 3 Average Corruption 2 | . . . . . . . . . . . . 2 Corruption Purged . | . . . . . . . . . . . . . Corruption Blocked . | . . . . . . . . . . . . . Effects 11 | . . . . . . . . . . . . 11 Message Errors 2 | . . . . . . . . . . . . 2 Matter Fused 2 | . . . . . . . . . . . . 2 Heat Flow Errors 1 | . . . . . . . . . . . . 1 Data Loss (minor) 2 | . . . . . . . . . . . . 2 Misfires 4 | . . . . . . . . . . . . 4 Overload Shots . | . . . . . . . . . . . . . Overflow Damage 697 | . 1 . 108 389 . 88 . . . . . 111 Projectiles 11 | . . . . . . . . . . . . 11 Explosions 59 | . 1 . . . . . . . . . . 58 Melee 627 | . . . 108 389 . 88 . . . . . 42 Knockbacks 20 | . . . . . . 9 . 5 3 . . 3 Impact 1 | . . . . . . 1 . . . . . . Kinetic 18 | . . . . . . 7 . 5 3 . . 3 Secondary 1 | . . . . . . 1 . . . . . . Self-Inflicted Damage 217 | . 113 . . . . 2 . . . . 102 . Shots 3 | . 2 . . . . . . . . . 1 . Rammed 1 | . . . . . . 1 . . . . . . Targets Rammed 1 | . . . . . . 1 . . . . . . Kicked . | . . . . . . . . . . . . . Crushed . | . . . . . . . . . . . . . Highest Temperature 504 | . 45 18 7 10 . 12 11 242 213 33 84 504 Average Temperature 98 | . 21 8 7 10 . 6 6 95 71 18 31 132 Received Heat Transfer 2703 | . 21 75 144 482 . 706 210 352 185 9 45 474 Effects 3 | . . . . . . . . 2 . . . 1 Interference 2 | . . . . . . . . 2 . . . . Matter Decay 1 | . . . . . . . . . . . . 1 Siege Activations . | . . . . . . . . . . . . . Robots Corrupted . | . . . . . . . . . . . . . Combat Hostiles . | . . . . . . . . . . . . . Parts Fried 8 | . . . . . . 3 . 2 1 . 2 . Impact Corruptions 3 | . . . . . . 3 . . . . . . Robots Melted 2 | . . . . . . . . . . . . 2 Combat Hostiles 2 | . . . . . . . . . . . . 2 Parts Melted 7 | . 1 . . 1 . . 2 . . . . 3 Heat Transferred 3489 | . 250 . . . . . . . 150 . 37 3052 Parts Sabotaged . | . . . . . . . . . . . . . Parts Stolen . | . . . . . . . . . . . . . Parts Stripped . | . . . . . . . . . . . . . Power Chain Reactions 2 | . 1 . . . . . . . 1 . . . Missiles Intercepted . | . . . . . . . . . . . . . Alert | -11 -10 -10 -9 -8 -7 -7 -6 -6 -6 -6 -6 -5 ------- Run | Scr Mat Min Mat Mat Fac DSF Fac Ext Cet Arc Hub Fac Peak Influence 1144 | . 242 224 368 520 22 225 371 407 501 369 884 1144 Initial 432 | . . 94 87 135 16 15 102 111 227 176 128 432 Average 313 | . 121 209 181 229 16 146 208 231 288 349 475 806 Maximum Alert Level 4 | . 1 1 1 2 . 1 1 2 2 1 3 4 Low Security (%) 36 | 100 45 21 55 40 100 91 58 40 23 2 7 . Level 1 36 | . 54 78 44 40 . 8 41 43 49 97 22 . Level 2 16 | . . . . 19 . . . 16 27 . 60 36 Level 3 9 | . . . . . . . . . . . 9 60 Level 4 . | . . . . . . . . . . . . 3 Level 5 . | . . . . . . . . . . . . . High Security . | . . . . . . . . . . . . . Max Security . | . . . . . . . . . . . . . Sterilizations 1 | . . . . . . 1 . . . . . . Squads Dispatched 20 | . . . 2 4 1 3 2 . 1 . 2 5 Investigation 3 | . . . . 1 1 . . . 1 . . . Extermination 3 | . . . . . . . 1 . . . 1 1 Reinforcement 10 | . . . 2 2 . 3 1 . . . 1 1 Assault 3 | . . . . . . . . . . . . 3 Garrison 1 | . . . . 1 . . . . . . . . Intercept . | . . . . . . . . . . . . . Searches Triggered . | . . . . . . . . . . . . . Construction Impeded . | . . . . . . . . . . . . . Haulers Reinforced 2 | . . . . . . . . . . . 1 1 Active Scanning Responses . | . . . . . . . . . . . . . Cargo Convoy Interrupts . | . . . . . . . . . . . . . Stealth | -11 -10 -10 -9 -8 -7 -7 -6 -6 -6 -6 -6 -5 --------- Run | Scr Mat Min Mat Mat Fac DSF Fac Ext Cet Arc Hub Fac Distress Signals 11 | . . . 3 1 . . 1 3 1 . 1 1 Communications Jammed . | . . . . . . . . . . . . . Distress Signals . | . . . . . . . . . . . . . Times Spotted 253 | . 8 5 36 40 . 21 20 27 17 2 9 68 Peak Tracking Total 11 | . 5 3 9 9 . 8 4 5 7 1 3 11 Tactical Retreats 19 | . 1 . 2 4 . 3 3 2 . . . 4 Traps | -11 -10 -10 -9 -8 -7 -7 -6 -6 -6 -6 -6 -5 ------- Run | Scr Mat Min Mat Mat Fac DSF Fac Ext Cet Arc Hub Fac Traps Triggered 8 | . . . . 1 . 3 1 3 . . . . Indirectly . | . . . . . . . . . . . . . Trap Hack Attempts . | . . . . . . . . . . . . . Triggered . | . . . . . . . . . . . . . Disarmed . | . . . . . . . . . . . . . Reprogrammed . | . . . . . . . . . . . . . Reused . | . . . . . . . . . . . . . Traps Extracted . | . . . . . . . . . . . . . Installed . | . . . . . . . . . . . . . Triggered . | . . . . . . . . . . . . . Machines | -11 -10 -10 -9 -8 -7 -7 -6 -6 -6 -6 -6 -5 ---------- Run | Scr Mat Min Mat Mat Fac DSF Fac Ext Cet Arc Hub Fac Machines Disabled 28 | . 3 . . . . . . 5 4 1 7 8 Max in Single Turn 6 | . 3 . . . . . . 2 1 1 6 5 Network Hub 1 | . . . . . . . . . . . 1 . Energy Cycler 1 | . . . . . . . . 1 . . . . Machines Sabotaged . | . . . . . . . . . . . . . Garrisons Compromised 1 | . . . . . . . . . . . . 1 Overloaded Fab Kills . | . . . . . . . . . . . . . Hacking | -11 -10 -10 -9 -8 -7 -7 -6 -6 -6 -6 -6 -5 --------- Run | Scr Mat Min Mat Mat Fac DSF Fac Ext Cet Arc Hub Fac Machines Accessed 36 | . 1 . 8 9 1 . 4 5 2 1 2 3 Terminals 31 | . 1 . 8 6 1 . 3 5 2 . 2 3 Fabricators 1 | . . . . . . . 1 . . . . . Repair Stations 2 | . . . . 2 . . . . . . . . Recycling Units 1 | . . . . 1 . . . . . . . . Scanalyzers . | . . . . . . . . . . . . . Garrison Access . | . . . . . . . . . . . . . Total Hacks 117 | . 2 . 24 38 3 . 8 13 4 8 5 12 Successful 64 | . . . 13 23 1 . 2 7 1 8 2 7 Failed 52 | . 2 . 11 14 2 . 6 6 3 . 3 5 Catastrophic 9 | . . . 1 2 . . . 2 . . 1 3 Database Lockouts 1 | . . . . 1 . . . . . . . . Manual 54 | . 2 . 17 15 . . 2 5 2 . 3 8 Terminals 96 | . 2 . 24 27 3 . 6 13 4 . 5 12 Fabricators 2 | . . . . . . . 2 . . . . . Repair Stations 8 | . . . . 8 . . . . . . . . Recycling Units 3 | . . . . 3 . . . . . . . . Scanalyzers . | . . . . . . . . . . . . . Garrison Access . | . . . . . . . . . . . . . Terminal Hacks 39 | . . . 10 9 1 . 2 4 1 8 1 3 Record 9 | . . . . . . . . . 1 8 . . Part Schematic 1 | . . . . . . . . 1 . . . . Robot Analysis 7 | . . . 6 1 . . . . . . . . Prototype ID Bank 2 | . . . . 1 . . . . . . 1 . Open Door 1 | . . . . . . . . 1 . . . . Open DSF 4 | . . . . . 1 . 2 . . . . 1 Terminal Index 1 | . . . 1 . . . . . . . . . Alert Level 4 | . . . . 1 . . . 2 . . . 1 Unreport Threat 6 | . . . 2 3 . . . . . . . 1 Locate Traps 2 | . . . 1 1 . . . . . . . . Patrol Status 1 | . . . . 1 . . . . . . . . Hauler Manifests 1 | . . . . 1 . . . . . . . . Fabricator Hacks . | . . . . . . . . . . . . . Repair Station Hacks 7 | . . . . 7 . . . . . . . . Scan Component 4 | . . . . 4 . . . . . . . . Repair 3 | . . . . 3 . . . . . . . . Recycling Unit Hacks 1 | . . . . 1 . . . . . . . . Retrieve Components 1 | . . . . 1 . . . . . . . . Scanalyzer . | . . . . . . . . . . . . . Garrison Access Hacks . | . . . . . . . . . . . . . Unauthorized Hacks 17 | . . . 3 6 . . . 3 . . 1 4 Terminals 15 | . . . 3 4 . . . 3 . . 1 4 Track 2 | . . . . 1 . . . . . . . 1 Botnet 10 | . . . 3 3 . . . 2 . . 1 1 Detonate 1 | . . . . . . . . . . . . 1 Disrupt 2 | . . . . . . . . 1 . . . 1 Fabricators . | . . . . . . . . . . . . . Repair Stations . | . . . . . . . . . . . . . Recycling Units 2 | . . . . 2 . . . . . . . . Reject 1 | . . . . 1 . . . . . . . . Recyclers 1 | . . . . 1 . . . . . . . . Scanalyzers . | . . . . . . . . . . . . . Garrison Access . | . . . . . . . . . . . . . Data Cores Recovered 2 | . . . . . . . . . . . 1 1 Used 1 | . . . . . . . . . . . . 1 Hacking Detections 29 | . 1 . 8 9 1 . 2 3 1 . 2 2 Full Trace Events 4 | . . . 1 1 1 . . . 1 . . . Feedback Events . | . . . . . . . . . . . . . Feedback Blocked . | . . . . . . . . . . . . . Robot Schematics Acquired . | . . . . . . . . . . . . . Robots Built . | . . . . . . . . . . . . . Authchips . | . . . . . . . . . . . . . Time . | . . . . . . . . . . . . . Total Robot Build Rating . | . . . . . . . . . . . . . Part Schematics Acquired 1 | . . . . . . . . 1 . . . . Parts Built . | . . . . . . . . . . . . . Authchips . | . . . . . . . . . . . . . Time . | . . . . . . . . . . . . . Total Part Build Rating . | . . . . . . . . . . . . . Parts Repaired 3 | . . . . 3 . . . . . . . . Time 129 | . . . . 129 . . . . . . . . Parts Recycled . | . . . . . . . . . . . . . Recycled Matter . | . . . . . . . . . . . . . Retrieved Matter . | . . . . . . . . . . . . . Retrieved Components 10 | . . . . 10 . . . . . . . . Parts Scanalyzed . | . . . . . . . . . . . . . Part Schematics Acquired . | . . . . . . . . . . . . . Parts Damaged . | . . . . . . . . . . . . . Bothacking | -11 -10 -10 -9 -8 -7 -7 -6 -6 -6 -6 -6 -5 ------------ Run | Scr Mat Min Mat Mat Fac DSF Fac Ext Cet Arc Hub Fac Used RIF Installer . | . . . . . . . . . . . . . Robots Hacked . | . . . . . . . . . . . . . Non-combat . | . . . . . . . . . . . . . Combat . | . . . . . . . . . . . . . Robot Hacks Applied . | . . . . . . . . . . . . . Relay Couplers Released . | . . . . . . . . . . . . . Fabnet Peak Effective % . | . . . . . . . . . . . . . Robots Rewired 20 | . . . . . . . . 19 . . . 1 Allies Hacked . | . . . . . . . . . . . . . Hacks Repelled . | . . . . . . . . . . . . . Allies | -11 -10 -10 -9 -8 -7 -7 -6 -6 -6 -6 -6 -5 -------- Run | Scr Mat Min Mat Mat Fac DSF Fac Ext Cet Arc Hub Fac Total Allies 28 | . . . . . . . . 22 5 . . 1 Largest Group 14 | . . . . . . . . 14 14 5 5 6 Highest-Rated Group 509 | . . . . . . . . 500 500 480 480 509 Highest-Rated Ally 159 | . . . . . . . . 159 151 96 96 96 Total Orders 2 | . . . . . . . . . . . . 2 EXPLORE 1 | . . . . . . . . . . . . 1 RETURN 1 | . . . . . . . . . . . . 1 Ally Attacks 312 | . . . . . . . . 122 70 20 23 77 Total Damage 8960 | . . . . . . . . 3108 1917 773 543 2619 Kills 61 | . . . . . . . . 20 8 3 6 24 Allies Corrupted . | . . . . . . . . . . . . . Allies Melted . | . . . . . . . . . . . . . Intel | -11 -10 -10 -9 -8 -7 -7 -6 -6 -6 -6 -6 -5 ------- Run | Scr Mat Min Mat Mat Fac DSF Fac Ext Cet Arc Hub Fac Robot Analysis Total 7 | . . . 6 1 . . . . . . . . Derelict Logs Recovered 1 | . . 1 . . . . . . . . . . Drone Launches 2 | . . . . . . . . . . . . 2 Drone Recoveries 2 | . . . . . . . . . . . . 2 Exploration | -11 -10 -10 -9 -8 -7 -7 -6 -6 -6 -6 -6 -5 ------------- Run | Scr Mat Min Mat Mat Fac DSF Fac Ext Cet Arc Hub Fac Turns Passed 7295 | 47 175 316 979 1538 65 373 549 1144 520 192 325 1072 Spaces Moved 3703 | 40 132 265 474 779 53 174 275 495 240 99 165 512 Core 10 | 5 . . . . . . . . . . . 5 Treads 255 | . 25 16 105 109 . . . . . . . . Legs 1049 | . . . . . . . . 274 240 99 165 271 Wheels 2153 | 35 107 249 369 670 53 174 275 221 . . . . Hover 236 | . . . . . . . . . . . . 236 Flight . | . . . . . . . . . . . . . Fastest Speed 50 | 50 80 95 95 95 115 100 115 115 180 180 180 60 Average Speed 134 | 76 111 98 137 119 115 107 116 151 180 180 180 146 Slowest Speed 270 | 80 160 160 240 240 115 115 130 190 180 180 180 270 Overloaded Moves . | . . . . . . . . . . . . . Propulsion Burnouts . | . . . . . . . . . . . . . Robots Hopped . | . . . . . . . . . . . . . Cave-ins Triggered . | . . . . . . . . . . . . . Exploration Rate (%) 41 | 4 29 67 51 59 2 55 11 73 63 72 33 21 Regions Visited 12 Branch Regions 5 Pre-discovered Areas . | . . . . . . . . . . . . . Known Exits Taken 3 | . . . . 1 1 . 1 . . . . . Unknown Exits Taken 8 | 1 1 1 1 . . . . 1 1 1 1 . Scrap Searched 1 | . . 1 . . . . . . . . . . Spaces Dug 6 | . . . . 4 1 . 1 . . . . . Terrain Destroyed 311 | . 51 . . 4 1 . 10 11 9 3 162 60 Melee 5 | . . . . 4 1 . . . . . . . Projectile 35 | . . . . . . . 6 11 5 3 4 6 AOE 267 | . 51 . . . . . . . 4 . 158 54 Terrain Rammed . | . . . . . . . . . . . . . Walls Destroyed . | . . . . . . . . . . . . . Machines Disabled . | . . . . . . . . . . . . . Actions | -11 -10 -10 -9 -8 -7 -7 -6 -6 -6 -6 -6 -5 --------- Run | Scr Mat Min Mat Mat Fac DSF Fac Ext Cet Arc Hub Fac Total 5170 | 52 148 292 672 1194 54 283 403 789 284 107 175 717 Wait 463 | . 3 2 71 208 . 24 51 19 10 . . 75 Move 3691 | 39 131 264 473 778 52 173 274 494 239 98 164 512 Hop . | . . . . . . . . . . . . . Pick Up 92 | 6 1 3 20 21 . 6 8 15 2 . . 10 Fast Attach 58 | 6 1 1 3 14 1 5 2 7 2 2 1 13 Attach 60 | . 1 . 5 15 . 6 10 10 1 . . 12 Detach 18 | . 1 . 3 6 . . 1 . 1 . 1 5 Swap 86 | 1 4 6 17 36 . 9 3 3 1 1 . 5 Drop 59 | . 1 . 12 20 . 4 3 4 5 3 . 7 Fire 211 | . 5 16 . . . 13 51 45 23 3 9 46 Melee 207 | . . . 68 96 1 28 . . . . . 14 Ram 1 | . . . . . . 1 . . . . . . Kick . | . . . . . . . . . . . . . Crush . | . . . . . . . . . . . . . Escape Stasis 30 | . . . . . . 14 . 16 . . . . Rewire 194 | . . . . . . . . 176 . . . 18 Trap . | . . . . . . . . . . . . . Miscellaneous . | . . . . . . . . . . . . . Route ------- -11/Scrapyard -10/Materials -10/Mines -9/Materials (discovered 3 exits: *Mat / [*Min x2]) -8/Materials -7/Factory (discovered 2 exits: Sto / DSF) -7/DSF -6/Factory -6/Extension (discovered 2 exits: *Fac / *Cet) -6/Cetus -6/Archives (discovered 3 exits: *Fac / *Hub x2) -6/Hub_04(d) (discovered 2 exits: *Fac x2) -5/Factory History --------- Turn | Location | Event 32 | -11/Scrapyard | Discovered new exit (range 16) 48 | -11/Scrapyard | Entered Materials 188 | -10/Materials | Discovered new exit (range 16) 223 | -10/Materials | Entered Mines 350 | -10/Mines | Build established: Mutant 533 | -10/Mines | Discovered new exit (range 8) 539 | -10/Mines | Entered Materials 539 | -9/Materials | Evolved 2 slots: Utility x1, Weapon x1 774 | -9/Materials | Discovered new exit (range 7) 1006 | -9/Materials | Discovered new exit (range 16) 1448 | -9/Materials | Discovered new exit (range 16) 1518 | -9/Materials | Entered another Materials area 1518 | -8/Materials | Evolved 2 slots: Utility x2 1701 | -8/Materials | Repaired Broken Axe? 1764 | -8/Materials | Lost 3 parts (1n2u) 2380 | -8/Materials | Lost 3 parts (1p1u1w) 2421 | -8/Materials | Destroyed 8 combat bots 2461 | -8/Materials | Lost 4 parts (1p2n1u) 2491 | -8/Materials | Garrison activated, responded to threat 2709 | -8/Materials | Central database locked down 2764 | -8/Materials | Repaired Adv. Weight Redist. System 2805 | -8/Materials | Repaired Axe 3026 | -8/Materials | Discovered new exit (range 15) 3052 | -8/Materials | Identified exit to Factory 3056 | -8/Materials | Entered Factory 3056 | -7/Factory | Evolved 2 slots: Utility x2 3057 | -7/Factory | Identified exit to Storage 3119 | -7/Factory | Identified exit to DSF 3121 | -7/Factory | Entered DSF 3181 | -7/DSF | Additional patrols routed to DSF 3429 | -7/DSF | Sterilization system engaged 3449 | -7/DSF | Ambient heat levels rising (+10) 3464 | -7/DSF | Ambient heat levels rising (+10) 3468 | -7/DSF | Discovered new exit (range 15) 3469 | -7/DSF | Core integrity fell below 50% 3479 | -7/DSF | Ambient heat levels rising (+10) 3493 | -7/DSF | Identified exit to Factory 3494 | -7/DSF | Ambient heat levels rising (+10) 3494 | -7/DSF | Entered Factory 3494 | -6/Factory | Evolved 2 slots: Utility x2 3525 | -6/Factory | Lost 10 parts (1p2n2u5w) 3719 | -6/Factory | Lost 3 parts (2p1u) 3992 | -6/Factory | Discovered new exit (range 11) 4041 | -6/Factory | Identified exit to Extension 4043 | -6/Factory | Entered Extension 4053 | -6/Extension | Disrupted transfer network 4178 | -6/Extension | Rescued A7 4375 | -6/Extension | Lost 3 parts (2u1w) 4378 | -6/Extension | Build established: Scavenger-Tank 4445 | -6/Extension | Spotted B-75 Beast 4451 | -6/Extension | Spotted B-75 Beast 4482 | -6/Extension | Allies destroyed B-75 Beast 4500 | -6/Extension | Allies destroyed B-75 Beast 4528 | -6/Extension | Lost 11 parts (2p1n3u5w) 4883 | -6/Extension | Energy Cycler disabled 4883 | -6/Extension | Rescued a captive Derelict 4888 | -6/Extension | Rescued a captive Derelict 5128 | -6/Extension | Discovered new exit (range 10) 5130 | -6/Extension | Discovered new exit (range 6) 5187 | -6/Extension | Entered Cetus 5187 | -6/Cetus | Accompanied by 14 allies (A7) 5192 | -6/Cetus | Acquired a Cetus Manufacturing Module code from A7 5198 | -6/Cetus | Spotted Cetus Guard 5200 | -6/Cetus | Spotted Cetus Guard 5203 | -6/Cetus | Spotted Cetus Guard 5204 | -6/Cetus | Spotted Cetus Guard 5232 | -6/Cetus | Destroyed Cetus Guard 5234 | -6/Cetus | Allies destroyed Cetus Guard 5235 | -6/Cetus | Destroyed Cetus Guard 5239 | -6/Cetus | Destroyed Cetus Guard 5245 | -6/Cetus | Extracted ID and sensor layout for unrecognized location from A7's data core 5401 | -6/Cetus | Started Cetus Manufacturing Module 5426 | -6/Cetus | Manufactured an Enhanced Grunt 5451 | -6/Cetus | Manufactured an Enhanced Grunt 5476 | -6/Cetus | Manufactured an Enhanced Grunt 5501 | -6/Cetus | Manufactured an Enhanced Grunt 5526 | -6/Cetus | Manufactured an Enhanced Grunt 5537 | -6/Cetus | Discovered new exit (range 15) 5641 | -6/Cetus | Found a strange terminal 5707 | -6/Cetus | Entered Archives 5707 | -6/Archives | Accompanied by 5 allies 5780 | -6/Archives | Unable to access archive contents 5788 | -6/Archives | Discovered new exit (range 15) 5813 | -6/Archives | Unable to access archive contents 5820 | -6/Archives | Discovered new exit (range 15) 5831 | -6/Archives | Unable to access archive contents 5838 | -6/Archives | Discovered new exit (range 16) 5849 | -6/Archives | Unable to access archive contents 5899 | -6/Archives | Entered Hub_04(d) 5899 | -6/Hub_04(d) | Accompanied by 5 allies 6032 | -6/Hub_04(d) | Discovered new exit (range 15) 6163 | -6/Hub_04(d) | Discovered new exit (range 9) 6194 | -6/Hub_04(d) | Network Hub disabled 6224 | -6/Hub_04(d) | Entered Factory 6224 | -5/Factory | Accompanied by 5 allies 6224 | -5/Factory | Evolved 2 slots: Utility x2 6524 | -5/Factory | First assault squad dispatched 6721 | -5/Factory | Destroyed 10 combat bots 6722 | -5/Factory | Lost 8 parts (1n4u3w) 6892 | -5/Factory | Core integrity fell below 50% 6928 | -5/Factory | Lost 13 parts (1p4n4u4w) 7277 | -5/Factory | Found Powered Armor 7296 | -5/Factory | Self-destructed Last Messages --------------- 07158_ >> Machine Analyzer network decryption results: 07158_ Recycling Unit x4 07173_ System corrupted: FCS attempts to trigger Thermic Laser. 07173_ System corrupted: Thermic Laser misfires. 07176_ Acquired Drone Bay. 07179_ Drone released from Drone Bay. 07198_ Slug penetrates Wall. 07201_ Acquired Reaction Control System. 07203_ Drone retrieved by Drone Bay. 07243_ Dropped Datajack. 07243_ Acquired Huge Storage Unit. 07267_ >> Machine Analyzer network decryption results: 07267_ Scanalyzer x1 07277_ Dropped Lgt. Antimatter Reactor. 07277_ Acquired Powered Armor. 07286_ C-30 ARC bursts open, deploying its payload. 07286_ G-67 Veteran unfolds itself. 07286_ I-47 Archangel unfolds itself. 07288_ Lgt. Angular Momentum Engine destroyed. 07291_ Critical hit (Burn: +37). Map ----- +----------------------------------------------------+ | ?????????????????????????????? | | ?????????????????????????????? | | ?????????????????????????????? | | ?????????????????????????????? | | ?????????????????????????????? | | ?????????????????????????????? | | ?????????????????????????????? | | ?????????????????????????????? | | ?????????????????????????????? | | ?????????????????????????????? | | ?????????????????????????????? | | ?????????????????????????????? | | ????####?????????????+???????? | | ??? #????????????? ???????? | | #????????????? ???????? | | """"" #????????????? ???????? | | ""Y"" #????????????? ???????? | | ##########+### ???????? | | # # #??????? | | # ] # #??????? | | """ # # #??????? | | """ # """ """ # #??????? | | """ ] + """ """ # #######? | | # [ """ """ # # #? | | """ + # # #? | | """ # """ """ # #* @ #? | | """ # """ """ # #gl"" #? | | # """ """ # #i """#? | | # +"+%g S"#? | | ### # # # #? | | # ############## ##+####? | | # #???? | | # ###+####???? | | # # #???? | | + + #???? | | ##########+######" #???? | | #?????# #T / ]#???? | | #?????# !! / #" ! #???? | | #?????# !!! # ! #???? | | #?????# !!! ### ####???? | | ###?????###########?###??????? | | ?????????????????????????????? | | ?????????????????????????????? | | ?????????????????????????????? | | ?????????????????????????????? | | ?????????????????????????????? | | ?????????????????????????????? | | ?????????????????????????????? | | ?????????????????????????????? | | ?????????????????????????????? | +----------------------------------------------------+ Best States ------------- Heat Dissipation 78 Energy Generation 21 Energy Capacity 315 Matter Stores 300 Matter Capacity 300 Sight Range 22 Robot Scan Range 15 Terrain Scan Range 16 Terrain Scan Density 10 Additional Mass Support 9 Armor Coverage 525 Resistance: TH 20 Resistance: EX 25 Core Shielding 20 Propulsion Shielding 33 Evasion (%) 55 Melee Accuracy 6 Recoil Reduction 2 Offensive Hacking 10 Defensive Hacking 10 Item Schematics ----------------- Cmb. Airjet | -6/Extension | Hacked Robot Schematics ------------------ None Fabricated ------------ Nothing Alien Tech Used ----------------- None Achievements -------------- None Challenges ------------ None Game ------ Seed SignalForceUnit Manual? 0 Play Time 02:03:09 Cumulative 956.4 hours Start 2022.11.24 @ 18:11:33 End 2022.11.25 @ 00:27:54 Sessions 1 Manual Loads 0 Difficulty Rogue Special Mode None Game No. 375 Rogue 375 Adventurer 0 Explorer 0 Win Type - Total 13 Types 12/0/1/0/0/0/0/0/0 Lore% 71 Gallery% 81 Achievement% 70 Wizard Run 0 Options --------- ASCII 0 Keyboard 1 Movement Numpad Keybinds 0 Fullscreen 2 Font 18/SmallcapsGlow Map View 112x50 Tactical HUD 1 Map Filters NONE Filters NONE Steam 1 RUN: b80a281d-ec84-4951-b52f-fbc534163f3d